[Event "*** Titled Tuesday Blitz"]
[Site "Chess.com"]
[Date "2020.03.03"]
[Round "5"]
[White "mohssenbinaddi"]
[Black "ChainsOfFantasia"]
[Result "0-1"]
[WhiteElo "2200"]
[BlackElo "2547"]
[TimeControl "180+1"]
[EndTime "13:51:50 PST"]
[Termination "ChainsOfFantasia won by resignation"]

1. e4 {[%clk 0:03:00.9]} 1... e6 {[%clk 0:02:59.9]} 2. Nf3 {[%clk 0:03:01.2]}
2... d5 {[%clk 0:03:00.3]} 3. Nc3 {[%clk 0:03:01.7]} 3... Nf6 {[%clk 0:02:59.7]}
4. e5 {[%clk 0:03:01.2]} 4... Nfd7 {[%clk 0:02:59.9]} 5. d4 {[%clk 0:03:02.1]}
5... c5 {[%clk 0:03:00.4]} 6. Ne2 {[%clk 0:03:01.5]} 6... cxd4 {[%clk
0:02:59.2]} 7. Nexd4 {[%clk 0:02:52.6]} 7... Nc6 {[%clk 0:02:59.2]} 8. Bf4
{[%clk 0:02:52.6]} 8... Qb6 {[%clk 0:02:57.7]} 9. Nxc6 {[%clk 0:02:46.8]} 9...
bxc6 {[%clk 0:02:58.6]} 10. Qc1 {[%clk 0:02:33.1]} 10... Rb8 {[%clk 0:02:56.1]}
11. Be3 {[%clk 0:02:23.8]} 11... Qxb2 {[%clk 0:02:53.5]} 12. Bxa7 {[%clk
0:02:22.2]} 12... Bb4+ {[%clk 0:02:42.6]} 13. Kd1 {[%clk 0:02:21.4]} 13... Qxc1+
{[%clk 0:02:35.5]} 14. Rxc1 {[%clk 0:02:19.3]} 14... Ra8 {[%clk 0:02:34.3]} 15.
Rb1 {[%clk 0:02:05.8]} 15... c5 {[%clk 0:02:22]} 16. a3 {[%clk 0:01:48.1]} 16...
Bxa3 {[%clk 0:02:20.6]} 17. Bb6 {[%clk 0:01:40.4]} 17... Rb8 {[%clk 0:02:06.6]}
18. Bb5 {[%clk 0:01:27.4]} 18... O-O {[%clk 0:01:54.5]} 19. Bc7 {[%clk
0:01:24.8]} 19... Rb7 {[%clk 0:01:46.4]} 20. Bd6 {[%clk 0:01:24.2]} 20... Rd8
{[%clk 0:01:43.6]} 21. Kd2 {[%clk 0:01:16.7]} 21... Bb4+ {[%clk 0:01:37.6]} 22.
c3 {[%clk 0:01:16.7]} 22... Rxb5 {[%clk 0:01:32.9]} 23. cxb4 {[%clk 0:01:16.5]}
23... cxb4 {[%clk 0:01:29.4]} 24. Rxb4 {[%clk 0:01:16.3]} 24... Rxb4 {[%clk
0:01:24.9]} 25. Bxb4 {[%clk 0:01:17.2]} 25... f6 {[%clk 0:01:25.4]} 26. Bd6
{[%clk 0:01:12.1]} 26... Nb6 {[%clk 0:01:21.9]} 27. Bc7 {[%clk 0:01:08.4]} 27...
Nc4+ {[%clk 0:01:21.7]} 28. Kc3 {[%clk 0:01:07.4]} 28... Rd7 {[%clk 0:01:22.1]}
29. Bb8 {[%clk 0:00:57.6]} 29... Rb7 {[%clk 0:01:21.5]} 30. Bd6 {[%clk
0:00:50.4]} 30... Rb6 {[%clk 0:01:11.7]} 31. Bc5 {[%clk 0:00:46.6]} 31... Rc6
{[%clk 0:01:11.4]} 32. Kb4 {[%clk 0:00:39.6]} 32... fxe5 {[%clk 0:01:04.6]} 33.
Ra1 {[%clk 0:00:39.6]} 33... h6 {[%clk 0:00:48.5]} 34. Ra8 {[%clk 0:00:37.9]}
34... Kh7 {[%clk 0:00:47.1]} 35. Ra7 {[%clk 0:00:35.9]} 35... e4 {[%clk
0:00:38.5]} 36. Nd4 {[%clk 0:00:32.5]} 36... Ne5 {[%clk 0:00:37.3]} 37. Re7
{[%clk 0:00:17.4]} 37... Nd3+ {[%clk 0:00:34.8]} 38. Kb5 {[%clk 0:00:16.3]}
38... Rxc5+ {[%clk 0:00:33.5]} 0-1

[Event "*** Titled Tuesday Blitz"]
[Site "Chess.com"]
[Date "2020.03.03"]
[Round "5"]
[White "moro182"]
[Black "GMWSO"]
[Result "0-1"]
[WhiteElo "2704"]
[BlackElo "3112"]
[TimeControl "180+1"]
[EndTime "13:51:51 PST"]
[Termination "GMWSO won by resignation"]

1. d4 {[%clk 0:03:00.9]} 1... Nf6 {[%clk 0:02:59.5]} 2. c4 {[%clk 0:03:00.7]}
2... e6 {[%clk 0:02:58.5]} 3. Nc3 {[%clk 0:03:00]} 3... Bb4 {[%clk 0:02:56.7]}
4. Nf3 {[%clk 0:03:00.3]} 4... c5 {[%clk 0:02:53.1]} 5. e3 {[%clk 0:02:47.4]}
5... Nc6 {[%clk 0:02:50.2]} 6. Bd3 {[%clk 0:02:44.1]} 6... Bxc3+ {[%clk
0:02:50.5]} 7. bxc3 {[%clk 0:02:44.1]} 7... d6 {[%clk 0:02:51.4]} 8. O-O {[%clk
0:02:43.6]} 8... e5 {[%clk 0:02:48.5]} 9. Bc2 {[%clk 0:02:33.3]} 9... h6 {[%clk
0:02:43.2]} 10. d5 {[%clk 0:02:27.4]} 10... Ne7 {[%clk 0:02:42.8]} 11. Nd2
{[%clk 0:02:25.3]} 11... O-O {[%clk 0:02:35.6]} 12. f4 {[%clk 0:02:25.3]} 12...
exf4 {[%clk 0:02:35.3]} 13. exf4 {[%clk 0:02:24.8]} 13... Bf5 {[%clk 0:02:33.3]}
14. Nf3 {[%clk 0:02:21.2]} 14... Qd7 {[%clk 0:02:29.5]} 15. Ba4 {[%clk
0:02:13.4]} 15... Qc7 {[%clk 0:02:12.4]} 16. Bd2 {[%clk 0:02:10]} 16... a6
{[%clk 0:02:10.4]} 17. Be1 {[%clk 0:02:06.6]} 17... b5 {[%clk 0:02:07.5]} 18.
Bb3 {[%clk 0:01:55.7]} 18... bxc4 {[%clk 0:02:01.1]} 19. Bxc4 {[%clk 0:01:56.6]}
19... Be4 {[%clk 0:02:01.8]} 20. Bh4 {[%clk 0:01:53.7]} 20... Bxd5 {[%clk
0:02:01.8]} 21. Bd3 {[%clk 0:01:40.2]} 21... Ne4 {[%clk 0:01:44.9]} 22. c4
{[%clk 0:01:37.5]} 22... Bc6 {[%clk 0:01:44.5]} 23. f5 {[%clk 0:00:47.7]} 23...
Nxf5 {[%clk 0:01:40.9]} 24. Bf2 {[%clk 0:00:38.2]} 24... Rae8 {[%clk 0:01:36.5]}
25. Qc2 {[%clk 0:00:34.3]} 25... Re7 {[%clk 0:01:28.2]} 26. Nd2 {[%clk
0:00:25.5]} 26... Rfe8 {[%clk 0:01:24.3]} 27. Rae1 {[%clk 0:00:13.9]} 27... Nxf2
{[%clk 0:01:16.9]} 28. Rxe7 {[%clk 0:00:14.8]} 28... Nxe7 {[%clk 0:00:50.2]} 29.
Rxf2 {[%clk 0:00:14.8]} 29... Qd7 {[%clk 0:00:42.8]} 30. Bh7+ {[%clk 0:00:13.7]}
30... Kf8 {[%clk 0:00:42.6]} 31. Nf1 {[%clk 0:00:12.3]} 31... Qe6 {[%clk
0:00:40]} 32. Ng3 {[%clk 0:00:11.1]} 32... g6 {[%clk 0:00:37]} 33. Re2 {[%clk
0:00:10.3]} 33... Qf6 {[%clk 0:00:36]} 34. Rf2 {[%clk 0:00:07]} 34... Qa1+
{[%clk 0:00:36]} 35. Nf1 {[%clk 0:00:06.1]} 35... Kg7 {[%clk 0:00:34.6]} 36. Qd2
{[%clk 0:00:05.2]} 36... Qd4 {[%clk 0:00:31.4]} 37. Qa5 {[%clk 0:00:05.3]} 37...
Kxh7 {[%clk 0:00:29.4]} 0-1

[Event "*** Titled Tuesday Blitz"]
[Site "Chess.com"]
[Date "2020.03.03"]
[Round "5"]
[White "Zubrrr"]
[Black "elohunter1999"]
[Result "1-0"]
[WhiteElo "2651"]
[BlackElo "2437"]
[TimeControl "180+1"]
[EndTime "13:51:53 PST"]
[Termination "Zubrrr won by resignation"]

1. c4 {[%clk 0:03:00.9]} 1... Nf6 {[%clk 0:02:58.3]} 2. g3 {[%clk 0:03:00.9]}
2... e6 {[%clk 0:02:58.4]} 3. Bg2 {[%clk 0:03:00]} 3... d5 {[%clk 0:02:59.3]} 4.
Nf3 {[%clk 0:03:00.5]} 4... dxc4 {[%clk 0:02:58.2]} 5. Na3 {[%clk 0:03:00.2]}
5... Bxa3 {[%clk 0:02:56.5]} 6. bxa3 {[%clk 0:03:00.6]} 6... O-O {[%clk
0:02:57]} 7. Bb2 {[%clk 0:02:59.5]} 7... Nc6 {[%clk 0:02:56.8]} 8. Qc2 {[%clk
0:02:56.4]} 8... Re8 {[%clk 0:02:56.5]} 9. Qxc4 {[%clk 0:02:55.6]} 9... e5
{[%clk 0:02:56.7]} 10. Ng5 {[%clk 0:02:45.9]} 10... h6 {[%clk 0:02:50.7]} 11.
Nxf7 {[%clk 0:02:29.5]} 11... Na5 {[%clk 0:02:26.1]} 12. Nxh6+ {[%clk
0:02:13.4]} 12... Kh7 {[%clk 0:02:23.4]} 13. Qa4 {[%clk 0:02:04.9]} 13... c5
{[%clk 0:02:10.6]} 14. Nf7 {[%clk 0:02:02.6]} 14... Qc7 {[%clk 0:01:51.1]} 15.
Ng5+ {[%clk 0:01:58.8]} 15... Kg6 {[%clk 0:01:43.5]} 16. h4 {[%clk 0:01:48.5]}
16... Bf5 {[%clk 0:01:41.5]} 17. d3 {[%clk 0:01:31.5]} 17... Nc6 {[%clk
0:01:38.7]} 18. h5+ {[%clk 0:01:16.2]} 18... Kh6 {[%clk 0:01:23.4]} 19. Bc1
{[%clk 0:01:13.7]} 19... Qa5+ {[%clk 0:01:11.4]} 20. Qxa5 {[%clk 0:01:10.7]}
20... Nxa5 {[%clk 0:01:12.3]} 21. Bd2 {[%clk 0:00:48.4]} 21... Nc6 {[%clk
0:01:10.7]} 22. Bxc6 {[%clk 0:00:37.6]} 22... bxc6 {[%clk 0:01:09.9]} 23. Nf7+
{[%clk 0:00:37.1]} 23... Kh7 {[%clk 0:01:04.4]} 24. Nd6 {[%clk 0:00:38]} 24...
Be6 {[%clk 0:01:01.6]} 25. Nxe8 {[%clk 0:00:38]} 25... Rxe8 {[%clk 0:01:02.5]}
26. Rh4 {[%clk 0:00:33.7]} 26... Rb8 {[%clk 0:00:58.7]} 27. Bc3 {[%clk
0:00:33.1]} 27... Ng4 {[%clk 0:00:52.3]} 28. f3 {[%clk 0:00:28.6]} 28... Ne3
{[%clk 0:00:51.6]} 29. Kf2 {[%clk 0:00:29]} 29... Nd5 {[%clk 0:00:48.4]} 30.
Bxe5 {[%clk 0:00:29.1]} 30... Re8 {[%clk 0:00:45.5]} 31. Ra4 {[%clk 0:00:27.3]}
31... Bf7 {[%clk 0:00:37.4]} 32. f4 {[%clk 0:00:26.3]} 32... Bxh5 {[%clk
0:00:34.1]} 33. Rxa7 {[%clk 0:00:25.8]} 33... Ne7 {[%clk 0:00:32.4]} 34. Rh1
{[%clk 0:00:22.3]} 34... Kg6 {[%clk 0:00:31.9]} 35. e4 {[%clk 0:00:19.1]} 35...
Rb8 {[%clk 0:00:26.1]} 36. Rxe7 {[%clk 0:00:18]} 36... Rb2+ {[%clk 0:00:21.6]}
37. Bxb2 {[%clk 0:00:18]} 1-0

[Event "*** Titled Tuesday Blitz"]
[Site "Chess.com"]
[Date "2020.03.03"]
[Round "5"]
[White "chessdjw"]
[Black "ZEN-22"]
[Result "1-0"]
[WhiteElo "2629"]
[BlackElo "2406"]
[TimeControl "180+1"]
[EndTime "13:51:57 PST"]
[Termination "chessdjw won by checkmate"]

1. d4 {[%clk 0:03:00.9]} 1... Nf6 {[%clk 0:02:58.2]} 2. c4 {[%clk 0:02:59.6]}
2... b6 {[%clk 0:02:58]} 3. Qc2 {[%clk 0:02:56.9]} 3... Bb7 {[%clk 0:02:57.8]}
4. Nc3 {[%clk 0:02:50.3]} 4... e6 {[%clk 0:02:52.7]} 5. e4 {[%clk 0:02:49.3]}
5... Bb4 {[%clk 0:02:52.3]} 6. Bd3 {[%clk 0:02:48.2]} 6... c5 {[%clk 0:02:49]}
7. d5 {[%clk 0:02:46.1]} 7... exd5 {[%clk 0:02:48.8]} 8. exd5 {[%clk 0:02:43.8]}
8... O-O {[%clk 0:02:39]} 9. Ne2 {[%clk 0:02:43.2]} 9... h6 {[%clk 0:02:38.6]}
10. O-O {[%clk 0:02:39.4]} 10... Re8 {[%clk 0:02:38.5]} 11. a3 {[%clk
0:02:38.6]} 11... Ba5 {[%clk 0:02:29.4]} 12. h3 {[%clk 0:02:37.1]} 12... d6
{[%clk 0:02:28.1]} 13. Bf4 {[%clk 0:02:37.1]} 13... a6 {[%clk 0:02:26.5]} 14.
Rab1 {[%clk 0:02:36.5]} 14... b5 {[%clk 0:02:25.4]} 15. b3 {[%clk 0:02:31.3]}
15... bxc4 {[%clk 0:02:23.6]} 16. bxc4 {[%clk 0:02:31]} 16... Bc8 {[%clk
0:02:23.8]} 17. Ng3 {[%clk 0:02:18.3]} 17... Bc7 {[%clk 0:02:15.6]} 18. Nf5
{[%clk 0:02:12.5]} 18... Bxf5 {[%clk 0:02:14.6]} 19. Bxf5 {[%clk 0:02:12.1]}
19... Nbd7 {[%clk 0:02:15.2]} 20. Rb7 {[%clk 0:01:32.8]} 20... Rb8 {[%clk
0:02:07.5]} 21. Rxb8 {[%clk 0:01:24.3]} 21... Qxb8 {[%clk 0:02:04]} 22. Rb1
{[%clk 0:01:24.8]} 22... Qd8 {[%clk 0:02:03.2]} 23. Qa4 {[%clk 0:01:17.1]} 23...
g6 {[%clk 0:01:49.5]} 24. Bxd7 {[%clk 0:01:08.4]} 24... Qxd7 {[%clk 0:01:46.8]}
25. Qxa6 {[%clk 0:00:57.7]} 25... Qf5 {[%clk 0:01:45]} 26. Bxd6 {[%clk 0:00:38]}
26... Bxd6 {[%clk 0:01:36.8]} 27. Qxd6 {[%clk 0:00:37.3]} 27... Kg7 {[%clk
0:01:27.5]} 28. Qxc5 {[%clk 0:00:37]} 28... Qd3 {[%clk 0:01:15.3]} 29. Qb4
{[%clk 0:00:31.3]} 29... Re4 {[%clk 0:01:12]} 30. Nxe4 {[%clk 0:00:29]} 30...
Nxe4 {[%clk 0:01:10.2]} 31. Qb2+ {[%clk 0:00:22.9]} 31... Kh7 {[%clk 0:01:09]}
32. Rc1 {[%clk 0:00:22.5]} 32... Nc5 {[%clk 0:01:04.3]} 33. Qf6 {[%clk
0:00:19.6]} 33... Kg8 {[%clk 0:01:02.5]} 34. Qc3 {[%clk 0:00:16.5]} 34... Qf5
{[%clk 0:01:00.2]} 35. Qe3 {[%clk 0:00:16.2]} 35... Qc8 {[%clk 0:00:59.7]} 36.
d6 {[%clk 0:00:15.6]} 36... Kh7 {[%clk 0:00:59.2]} 37. Qd4 {[%clk 0:00:14.7]}
37... Ne6 {[%clk 0:00:58.7]} 38. Qd5 {[%clk 0:00:14.8]} 38... Qd7 {[%clk
0:00:57.3]} 39. c5 {[%clk 0:00:14.2]} 39... Nf4 {[%clk 0:00:58.2]} 40. Qf3
{[%clk 0:00:13.6]} 40... Qf5 {[%clk 0:00:56.4]} 41. c6 {[%clk 0:00:11.5]} 41...
Qe5 {[%clk 0:00:53]} 42. c7 {[%clk 0:00:10.3]} 42... Ne2+ {[%clk 0:00:53.9]} 43.
Qxe2 {[%clk 0:00:10.2]} 43... Qxe2 {[%clk 0:00:54.2]} 44. c8=Q {[%clk
0:00:10.6]} 44... Qe5 {[%clk 0:00:55.1]} 45. d7 {[%clk 0:00:10.6]} 45... Qf4
{[%clk 0:00:54.7]} 46. d8=Q {[%clk 0:00:10.6]} 46... h5 {[%clk 0:00:54.6]} 47.
Qh8# {[%clk 0:00:10.8]} 1-0

[Event "*** Titled Tuesday Blitz"]
[Site "Chess.com"]
[Date "2020.03.03"]
[Round "5"]
[White "Shant_Sargsyan"]
[Black "Lovkov_Roman"]
[Result "1-0"]
[WhiteElo "2991"]
[BlackElo "2687"]
[TimeControl "180+1"]
[EndTime "13:51:59 PST"]
[Termination "Shant_Sargsyan won by resignation"]

1. d4 {[%clk 0:03:00.7]} 1... d5 {[%clk 0:02:59.5]} 2. Nf3 {[%clk 0:03:01.6]}
2... e6 {[%clk 0:02:59.4]} 3. c4 {[%clk 0:03:02.5]} 3... c5 {[%clk 0:02:59.7]}
4. cxd5 {[%clk 0:03:02.8]} 4... exd5 {[%clk 0:03:00.6]} 5. g3 {[%clk 0:03:03.4]}
5... Nc6 {[%clk 0:03:00]} 6. Bg2 {[%clk 0:03:04]} 6... Nf6 {[%clk 0:03:00.5]} 7.
O-O {[%clk 0:03:04.7]} 7... cxd4 {[%clk 0:03:00.4]} 8. Nxd4 {[%clk 0:03:05.3]}
8... Be7 {[%clk 0:03:00.4]} 9. Nc3 {[%clk 0:03:05.4]} 9... O-O {[%clk
0:02:59.7]} 10. Be3 {[%clk 0:03:04.6]} 10... Be6 {[%clk 0:02:58.7]} 11. Rc1
{[%clk 0:03:04.5]} 11... Qd7 {[%clk 0:02:58.4]} 12. Nxc6 {[%clk 0:03:04.1]}
12... bxc6 {[%clk 0:02:58.4]} 13. Na4 {[%clk 0:03:04.8]} 13... Bh3 {[%clk
0:02:56.9]} 14. Bc5 {[%clk 0:03:02.6]} 14... Rfe8 {[%clk 0:02:50.3]} 15. Qd3
{[%clk 0:02:52.7]} 15... Bd8 {[%clk 0:02:33.3]} 16. Bd4 {[%clk 0:02:49.9]} 16...
Ne4 {[%clk 0:01:42.8]} 17. Nc5 {[%clk 0:02:48]} 17... Nxc5 {[%clk 0:01:41]} 18.
Bxc5 {[%clk 0:02:48.9]} 18... Bxg2 {[%clk 0:01:39.8]} 19. Kxg2 {[%clk
0:02:49.8]} 19... Re4 {[%clk 0:01:30.5]} 20. Rc2 {[%clk 0:02:48.3]} 20... Bf6
{[%clk 0:01:28.3]} 21. f3 {[%clk 0:02:45]} 21... Re6 {[%clk 0:01:27.6]} 22. Bf2
{[%clk 0:02:41.4]} 22... Rae8 {[%clk 0:01:26.4]} 23. e4 {[%clk 0:02:39.4]} 23...
Qb7 {[%clk 0:01:22.1]} 24. exd5 {[%clk 0:02:39]} 24... cxd5 {[%clk 0:01:23]} 25.
b3 {[%clk 0:02:39]} 25... h5 {[%clk 0:01:17.5]} 26. h4 {[%clk 0:02:38.1]} 26...
d4 {[%clk 0:01:11.4]} 27. Rd1 {[%clk 0:02:26]} 27... g6 {[%clk 0:01:08.5]} 28.
Rdd2 {[%clk 0:02:22.1]} 28... Qd5 {[%clk 0:00:59.6]} 29. Rc4 {[%clk 0:02:12.1]}
29... Rd8 {[%clk 0:00:31.1]} 30. Rc7 {[%clk 0:02:07.8]} 30... Qa5 {[%clk
0:00:28.9]} 31. Rcc2 {[%clk 0:01:45.2]} 31... g5 {[%clk 0:00:23.7]} 32. hxg5
{[%clk 0:01:34.3]} 32... Qxg5 {[%clk 0:00:24.6]} 33. Re2 {[%clk 0:01:34.8]}
33... Rde8 {[%clk 0:00:21]} 34. Rxe6 {[%clk 0:01:35]} 34... Rxe6 {[%clk
0:00:21.9]} 35. f4 {[%clk 0:01:05.6]} 35... Qg4 {[%clk 0:00:21.9]} 36. Qf3
{[%clk 0:01:04.7]} 36... Qf5 {[%clk 0:00:21.2]} 37. Rc8+ {[%clk 0:01:01]} 37...
Kg7 {[%clk 0:00:21.1]} 38. Qa8 {[%clk 0:00:59.3]} 38... Qh7 {[%clk 0:00:18]} 39.
Qd5 {[%clk 0:00:52.6]} 39... Re2 {[%clk 0:00:16.2]} 40. Rc7 {[%clk 0:00:47.4]}
40... Qg6 {[%clk 0:00:13.8]} 41. f5 {[%clk 0:00:47.3]} 1-0

[Event "*** Titled Tuesday Blitz"]
[Site "Chess.com"]
[Date "2020.03.03"]
[Round "5"]
[White "kleopl"]
[Black "DinaBelenkaya"]
[Result "1-0"]
[WhiteElo "2475"]
[BlackElo "2285"]
[TimeControl "180+1"]
[EndTime "13:51:59 PST"]
[Termination "kleopl won on time"]

1. e4 {[%clk 0:02:57.2]} 1... d5 {[%clk 0:02:58.8]} 2. exd5 {[%clk 0:02:56.9]}
2... Qxd5 {[%clk 0:02:56.8]} 3. Nc3 {[%clk 0:02:56.5]} 3... Qa5 {[%clk
0:02:51.5]} 4. d4 {[%clk 0:02:55.6]} 4... c6 {[%clk 0:02:41.6]} 5. Nf3 {[%clk
0:02:54.1]} 5... Bf5 {[%clk 0:02:38.1]} 6. Ne5 {[%clk 0:02:49.5]} 6... Nd7
{[%clk 0:02:30]} 7. Nxd7 {[%clk 0:02:48.8]} 7... Bxd7 {[%clk 0:02:29.2]} 8. Bc4
{[%clk 0:02:46.4]} 8... Nf6 {[%clk 0:02:26.8]} 9. O-O {[%clk 0:02:45.7]} 9... e6
{[%clk 0:02:17.4]} 10. Bf4 {[%clk 0:02:44.3]} 10... Qf5 {[%clk 0:02:05]} 11. Bg3
{[%clk 0:02:40.5]} 11... Be7 {[%clk 0:02:04.8]} 12. Re1 {[%clk 0:02:38.8]} 12...
O-O {[%clk 0:02:02.9]} 13. Re5 {[%clk 0:02:38.4]} 13... Qg4 {[%clk 0:02:00.8]}
14. Be2 {[%clk 0:02:35.6]} 14... Qg6 {[%clk 0:01:57.2]} 15. Bd3 {[%clk 0:02:34]}
15... Qh6 {[%clk 0:01:56.1]} 16. Ne2 {[%clk 0:02:27.5]} 16... Nh5 {[%clk
0:01:42.9]} 17. c3 {[%clk 0:02:15.3]} 17... Bd6 {[%clk 0:01:37.5]} 18. Re4
{[%clk 0:02:12.9]} 18... Nxg3 {[%clk 0:01:36.5]} 19. Nxg3 {[%clk 0:02:12.3]}
19... f5 {[%clk 0:01:36.6]} 20. Re1 {[%clk 0:02:05.8]} 20... Rae8 {[%clk
0:01:17.7]} 21. Bc4 {[%clk 0:02:03]} 21... Bc7 {[%clk 0:01:14.7]} 22. Qf3 {[%clk
0:01:58.5]} 22... Kh8 {[%clk 0:01:05.9]} 23. Bb3 {[%clk 0:01:56.3]} 23... a5
{[%clk 0:00:59.8]} 24. Rad1 {[%clk 0:01:54.3]} 24... g5 {[%clk 0:00:55.7]} 25.
Qh5 {[%clk 0:01:45.1]} 25... Qg7 {[%clk 0:00:53.5]} 26. Bc2 {[%clk 0:01:39.1]}
26... Re7 {[%clk 0:00:48.4]} 27. Re2 {[%clk 0:01:33.2]} 27... Be8 {[%clk
0:00:47.1]} 28. Qh3 {[%clk 0:01:29.2]} 28... g4 {[%clk 0:00:42]} 29. Qh4 {[%clk
0:01:28.7]} 29... Bd8 {[%clk 0:00:24.6]} 30. Rde1 {[%clk 0:01:02.6]} 30... Rd7
{[%clk 0:00:23.4]} 31. Nh5 {[%clk 0:00:49.3]} 31... Bxh4 {[%clk 0:00:23.1]} 32.
Nxg7 {[%clk 0:00:49.3]} 32... Kxg7 {[%clk 0:00:23.6]} 33. Rxe6 {[%clk
0:00:49.6]} 33... Bg6 {[%clk 0:00:19.1]} 34. R6e5 {[%clk 0:00:47.8]} 34... Bg5
{[%clk 0:00:19.2]} 35. Rxa5 {[%clk 0:00:47.1]} 35... Bf4 {[%clk 0:00:18.5]} 36.
g3 {[%clk 0:00:46.8]} 36... Bd6 {[%clk 0:00:18.5]} 37. a3 {[%clk 0:00:45.1]}
37... Kf6 {[%clk 0:00:14.7]} 38. Ra7 {[%clk 0:00:44.8]} 38... Re8 {[%clk
0:00:14.3]} 39. Rxe8 {[%clk 0:00:42.2]} 39... Bxe8 {[%clk 0:00:14.4]} 40. Ra5
{[%clk 0:00:42.4]} 40... Bg6 {[%clk 0:00:14.2]} 41. Kf1 {[%clk 0:00:41.9]} 41...
Re7 {[%clk 0:00:15.1]} 42. Ra7 {[%clk 0:00:41.4]} 42... f4 {[%clk 0:00:14.6]}
43. Bxg6 {[%clk 0:00:41]} 43... hxg6 {[%clk 0:00:14.1]} 44. gxf4 {[%clk
0:00:41.4]} 44... Bxf4 {[%clk 0:00:13.8]} 45. Kg2 {[%clk 0:00:41.9]} 1-0

[Event "*** Titled Tuesday Blitz"]
[Site "Chess.com"]
[Date "2020.03.03"]
[Round "5"]
[White "reigningmvp"]
[Black "RaphCamora"]
[Result "0-1"]
[WhiteElo "2286"]
[BlackElo "2436"]
[TimeControl "180+1"]
[EndTime "13:52:05 PST"]
[Termination "RaphCamora won by resignation"]

1. Nf3 {[%clk 0:03:00.9]} 1... Nf6 {[%clk 0:02:56.5]} 2. g3 {[%clk 0:02:59.3]}
2... d5 {[%clk 0:02:55.4]} 3. Bg2 {[%clk 0:02:57.4]} 3... e6 {[%clk 0:02:50.8]}
4. O-O {[%clk 0:02:54.5]} 4... Nbd7 {[%clk 0:02:50.5]} 5. d3 {[%clk 0:02:54.6]}
5... a5 {[%clk 0:02:46.5]} 6. Nbd2 {[%clk 0:02:55.5]} 6... a4 {[%clk 0:02:46.2]}
7. a3 {[%clk 0:02:54.9]} 7... c5 {[%clk 0:02:43.9]} 8. e4 {[%clk 0:02:54.3]}
8... Be7 {[%clk 0:02:38.3]} 9. Re1 {[%clk 0:02:52.8]} 9... O-O {[%clk
0:02:35.8]} 10. e5 {[%clk 0:02:45.6]} 10... Ne8 {[%clk 0:02:34.8]} 11. Nf1
{[%clk 0:02:45.9]} 11... b5 {[%clk 0:02:34]} 12. h4 {[%clk 0:02:45]} 12... Bb7
{[%clk 0:02:24.9]} 13. N1h2 {[%clk 0:02:39.6]} 13... d4 {[%clk 0:02:22.9]} 14.
h5 {[%clk 0:02:29.8]} 14... Nc7 {[%clk 0:02:20.5]} 15. h6 {[%clk 0:02:27.3]}
15... g6 {[%clk 0:02:19.8]} 16. Ng4 {[%clk 0:02:26.4]} 16... Nd5 {[%clk
0:02:18.5]} 17. Nd2 {[%clk 0:02:24.9]} 17... Qb6 {[%clk 0:02:04.1]} 18. Ne4
{[%clk 0:02:21.4]} 18... Rfb8 {[%clk 0:02:04.4]} 19. Bg5 {[%clk 0:02:18.9]}
19... Bxg5 {[%clk 0:01:53.5]} 20. Nxg5 {[%clk 0:02:17.9]} 20... Qd8 {[%clk
0:01:38.3]} 21. Ne4 {[%clk 0:02:11]} 21... Qe7 {[%clk 0:01:32.9]} 22. Qd2 {[%clk
0:02:07.3]} 22... b4 {[%clk 0:01:29.9]} 23. Nd6 {[%clk 0:02:01.2]} 23... Bc6
{[%clk 0:01:26.2]} 24. Bxd5 {[%clk 0:01:57.7]} 24... Bxd5 {[%clk 0:01:25.5]} 25.
Qf4 {[%clk 0:01:55.7]} 25... bxa3 {[%clk 0:01:21.1]} 26. bxa3 {[%clk 0:01:54.7]}
26... Rb2 {[%clk 0:01:16.4]} 27. Rab1 {[%clk 0:01:49.2]} 27... Rab8 {[%clk
0:01:07.3]} 28. Rxb2 {[%clk 0:01:43.7]} 28... Rxb2 {[%clk 0:01:08.2]} 29. Nf6+
{[%clk 0:01:41.4]} 29... Nxf6 {[%clk 0:01:07]} 30. exf6 {[%clk 0:01:41.2]} 30...
Qc7 {[%clk 0:00:59.4]} 31. Qc1 {[%clk 0:01:30.2]} 31... Qb8 {[%clk 0:00:53.4]}
32. Ne4 {[%clk 0:01:23.4]} 32... c4 {[%clk 0:00:53.8]} 33. Nc5 {[%clk
0:01:12.4]} 33... c3 {[%clk 0:00:40.7]} 34. Na6 {[%clk 0:01:06.3]} 34... Qc8
{[%clk 0:00:28.4]} 35. Nb4 {[%clk 0:01:03.8]} 35... Ba8 {[%clk 0:00:29]} 36. Re5
{[%clk 0:01:00]} 36... Qb7 {[%clk 0:00:26.6]} 37. Re4 {[%clk 0:00:37]} 37... Qb6
{[%clk 0:00:26]} 38. Re5 {[%clk 0:00:32.1]} 38... Qb7 {[%clk 0:00:21.9]} 39. Re4
{[%clk 0:00:32.2]} 39... Qb6 {[%clk 0:00:19.3]} 40. Rf4 {[%clk 0:00:29.6]} 40...
Qd8 {[%clk 0:00:14]} 41. Qe1 {[%clk 0:00:26.5]} 41... e5 {[%clk 0:00:13.7]} 42.
Qxe5 {[%clk 0:00:26.2]} 42... Rb1+ {[%clk 0:00:14]} 0-1